Cogmind - Beta 16 @@@ ROGUE MODE // 2026.01.15 @ 21:08:58 Player: Cube_41 Result: Destroyed by Y-54 Guardian with Flak Gun Performance ------------- Evolutions (0) 0 Regions Visited (3) 600 Robots Destroyed (41) 205 Value Destroyed (1087) 1087 Prototype IDs (19) 380 Alien Tech Used (0) 0 Bonus (146) 146 TOTAL SCORE: 2418 Bonus ------- Follower Combat Kills 146 Cogmind --------- Core Integrity 0/250 Matter 295/300 Energy 170/170 System Corruption 2% Temperature Cool (52) Movement Walking (90) Location -7/Recycling Parts ------- > --- POWER (1) -------- Makeshift Power Source > --- PROPULSION (2) --- VSS Leg VSS Leg > --- UTILITY (2) ------ Small Storage Unit Improved Light Armor Plating > --- WEAPON (2) ------- Gatling Laser Flak Gun > --- INVENTORY (8) ---- Improved Heat Sink Medium Storage Unit Core Analyzer Tower Shield Cobbler Unit Mini Grenade Launcher Peak State ------------ > --- POWER ------------ Makeshift Power Source > --- PROPULSION ------- VSS Leg VSS Leg > --- UTILITY ---------- Small Storage Unit Improved Light Armor Plating > --- WEAPON ----------- Gatling Laser Flak Gun > --- INVENTORY -------- Improved Heat Sink Medium Storage Unit Tower Shield Cobbler Unit Beam Cannon Mini Grenade Launcher [Rating: 25] Favorites ----------- Power Light Ion Engine Engine Light Ion Engine Propulsion Aluminum Leg Treads Light Treads Leg Aluminum Leg Utility Small Storage Unit Storage Small Storage Unit Protection Propulsion Shielding Weapon Beam Cannon Energy Gun Gatling Laser Energy Cannon Beam Cannon Ballistic Gun Subdweller Machine Gun Ballistic Cannon Light Cannon Build | -11 -10 -10 -7 ------- Run | Yrd Mat Sub Rec Slots Evolved . | . . . . Power . | . . . . Propulsion . | . . . . Utility . | . . . . Weapon . | . . . . Parts Attached 40 | 8 16 11 5 Power 5 | 1 1 3 . Engine 5 | 1 1 3 . Core . | . . . . Reactor . | . . . . Propulsion 15 | 4 8 1 2 Treads 2 | 2 . . . Leg 13 | 2 8 1 2 Wheel . | . . . . Hover . | . . . . Flight . | . . . . Utility 6 | 1 2 2 1 Device . | . . . . Storage 1 | 1 . . . Processor . | . . . . Hackware . | . . . . Protection 5 | . 2 2 1 Artifact . | . . . . Weapon 14 | 2 5 5 2 Energy Gun 3 | 2 . . 1 Energy Cannon 6 | . 4 2 . Ballistic Gun 3 | . . 2 1 Ballistic Cannon 2 | . 1 1 . Launcher . | . . . . Special Weapon . | . . . . Impact Weapon . | . . . . Slashing Weapon . | . . . . Piercing Weapon . | . . . . Special Melee Weapon . | . . . . Unidentified Prototypes . | . . . . Parts Lost 3 | . . 3 . Power 1 | . . 1 . Propulsion . | . . . . Utility . | . . . . Weapon 2 | . . 2 . Highest Loss Streak 1 | . . 1 . To Critical Strikes 1 | . . 1 . Average Backups 6 | 2 7 7 5 Power . | . 1 . . Propulsion . | 1 1 . . Utility 3 | . 2 3 4 Weapon 2 | . 2 2 1 Tool/Special . | . . . . Unused Backups 12 | . 5 1 6 Power . | . . . . Propulsion . | . . . . Utility 9 | . 3 1 5 Weapon 3 | . 2 . 1 Tool/Special . | . . . . Average Slot Usage (%) 99 | . 98 99 100 Engine 14 | . 14 14 14 Leg 28 | . 28 28 28 Storage 14 | . 14 14 14 Protection 13 | . 12 14 14 Energy Gun 1 | . 1 . 4 Energy Cannon 13 | . 19 9 9 Ballistic Gun 8 | . . 13 14 Ballistic Cannon 4 | . 6 4 . Peak Build Rating 25 | 6 8 20 25 Average Rating 12 | 4 7 12 21 On Entrance 8 | . 6 8 18 Avg Prop Armor Cover (%) . | . . . . Naked Turns . | . . . . Heaviest Build 24 | 12 17 24 24 Greatest Support 32 | 20 20 30 32 Greatest Overweight (x) 1 | . . 1 . Average Overweight (x) . | . . . . Largest Inventory Capacity 8 | 8 8 8 8 Average Capacity 7 | 6 8 8 8 Most Carried 8 | 4 8 8 8 Average Carried 7 | 2 7 7 7 Final Capacity 8 | 8 8 8 8 Final Carried 8 | 4 8 8 8 Class Distribution -------------------- 59% | Mutant 36% | Scavenger-Mutant 3% | Commander-Mutant Dominant Class ---------------- Mutant | -10/Materials Scavenger-Mutant | -10/Subcaves Mutant | -7/Recycling Resources | -11 -10 -10 -7 ----------- Run | Yrd Mat Sub Rec Matter Collected 901 | 228 300 243 130 Remotely . | . . . . Salvage Created 1390 | . 915 291 184 Parts 77 | . 54 17 6 Haulers Intercepted 2 | . 2 . . Recyclers Shooed 1 | . . . 1 Parts Field Recycled . | . . . . Retrieved Matter . | . . . . Parts Self-Destructed 12 | . . 12 . Prevented . | . . . . Parts Restored . | . . . . Kills | -11 -10 -10 -7 ------- Run | Yrd Mat Sub Rec Combat Hostiles Destroyed 34 | . 21 10 3 Guns 8 | . . 5 3 Cannons 26 | . 21 5 . Classes Destroyed 7 | . 5 2 . Hauler 2 | . 2 . . Recycler 2 | . 2 . . Watcher 3 | . 3 . . Swarmer 11 | . 8 3 . Grunt 15 | . 13 2 . Sentry 4 | . . 1 3 Subdweller 4 | . . 4 . Best Kill Streak 7 | . 7 2 1 Combat Bots Only 5 | . 5 2 1 Max Kills in Single Turn 2 | . 2 1 1 Gunslinging . | . . . . Exploded . | . . . . Melee . | . . . . Uniques/NPCs Destroyed . | . . . . Combat | -11 -10 -10 -7 -------- Run | Yrd Mat Sub Rec Hostile Shots Fired 220 | . 87 69 64 Missed 68 | . 19 22 27 Hits 152 | . 68 47 37 Projectile 152 | . 68 47 37 AOE 1 | . . . 1 Critical Strikes 2 | . 1 1 . Damage Taken 1560 | . 619 669 272 Core 251 | . 103 130 18 Absorbed by Shields 6 | . . . 6 Redirected to Shielding 59 | . 39 20 . Core Remaining (%) 100 | 100 . . . Volleys Fired 105 | . 59 35 11 Largest 2 | . 2 2 2 Hottest 120 | . 120 110 110 Shots Fired 193 | . 106 66 21 Gun 52 | . . 34 18 Cannon 141 | . 106 32 3 Launcher . | . . . . Special . | . . . . Kinetic 88 | . 25 53 10 Thermal 105 | . 81 13 11 Explosive . | . . . . Electromagnetic . | . . . . Robot Hit Streak 9 | . 9 8 8 Robot Miss Streak 4 | . 3 4 4 Penetration Max . | . . . . Secondary Targets . | . . . . Shots Hit Robots 108 | . 55 34 19 Core Hits 63 | 1 29 14 19 Critical Kills . | . . . . Critical Parts Destroyed 1 | . . 1 . Critical Strikes 4 | . 3 1 . Destroy 1 | . . 1 . Blast 3 | . 3 . . Melee Attacks . | . . . . Impact . | . . . . Slashing . | . . . . Piercing . | . . . . Sneak Attacks . | . . . . Combat Hostiles . | . . . . Follow-up Attacks . | . . . . Damage Inflicted 2187 | 3 1003 716 465 Guns 759 | . . 359 400 Cannons 1398 | . 996 349 53 Explosions . | . . . . Melee . | . . . . Ramming 30 | 3 7 8 12 Kinetic 961 | . 239 535 187 Thermal 1196 | . 757 173 266 Explosive . | . . . . Electromagnetic . | . . . . Impact . | . . . . Slashing . | . . . . Piercing . | . . . . Highest Corruption 2 | . 2 2 2 Average Corruption 1 | . 1 2 2 Corruption Purged . | . . . . Corruption Blocked . | . . . . Effects 32 | . 12 9 11 Message Errors 4 | . 1 . 3 Matter Fused 4 | . 3 1 . Heat Flow Errors 5 | . 2 1 2 Energy Discharges 5 | . . 3 2 Data Loss (minor) 7 | . 4 1 2 Data Loss (major) 1 | . 1 . . Misfires 3 | . 1 2 . Alerts 2 | . . 1 1 Weapon Failures 1 | . . . 1 Overload Shots . | . . . . Overflow Damage 5 | . 5 . . Projectiles 5 | . 5 . . Explosions . | . . . . Melee . | . . . . Knockbacks 6 | . 2 4 . Impact . | . . . . Kinetic 6 | . 2 4 . Secondary . | . . . . Self-Inflicted Damage . | . . . . Shots . | . . . . Rammed . | . . . . Targets Rammed 14 | 6 3 1 4 Kicked 14 | 6 3 1 4 Crushed . | . . . . Highest Temperature 365 | . 365 222 338 Average Temperature 103 | . 97 45 126 Received Heat Transfer 342 | . 177 81 84 Effects 5 | . 3 . 2 Shutdowns 1 | . . . 1 Energy Bleed 2 | . 1 . 1 Interference 2 | . 2 . . Siege Activations . | . . . . Martial Activations . | . . . . Shielding Activations . | . . . . Robots Disrupted . | . . . . Combat Hostiles . | . . . . Robots Corrupted . | . . . . Combat Hostiles . | . . . . Parts Fried . | . . . . Impact Corruptions . | . . . . Robots Melted . | . . . . Combat Hostiles . | . . . . Parts Melted 2 | . 2 . . Heat Transferred 2436 | . 1591 296 549 Parts Sabotaged . | . . . . Parts Stolen . | . . . . Parts Stripped . | . . . . Power Chain Reactions . | . . . . Alert | -11 -10 -10 -7 ------- Run | Yrd Mat Sub Rec Maximum Alert Level 1 | . 1 . . Low Security (%) 95 | 100 91 . 100 Level 1 4 | . 8 . . Level 2 . | . . . . Level 3 . | . . . . Level 4 . | . . . . Level 5 . | . . . . High Security . | . . . . Max Security . | . . . . Peak Influence 261 | . 261 . 92 Initial 67 | . . . 67 Average 75 | . 115 . 24 Influence Increases 1112 | . 616 205 291 Destroy 0b10 Robot/C 680 | . 420 120 140 Destroy 0b10 Robot/NC 40 | . 35 . 5 Destroy Leader 110 | . 100 10 . Allied During Kill 9 | . . . 9 Successful Hack 89 | . 28 . 61 Select Force Hacks 60 | . . . 60 Disable Machine 15 | . 15 . . Destroy Structure 4 | . 3 . 1 Partial Spotted 15 | . . . 15 Lose Combat Pursuer 90 | . 15 75 . Influence Decreases 1059 | . 559 121 379 Entered New Map 102 | . . 28 74 Time Decay 727 | . 409 73 245 Lost Part 20 | . . 20 . Lost Ally 60 | . . . 60 Purge Threat 150 | . 150 . . Squads Dispatched 6 | . 6 . . Investigation 4 | . 4 . . Extermination . | . . . . Reinforcement 2 | . 2 . . Assault . | . . . . Garrison . | . . . . Intercept . | . . . . Searches Triggered . | . . . . Construction Impeded . | . . . . Haulers Reinforced . | . . . . Active Scanning Responses . | . . . . Cargo Convoy Interrupts . | . . . . Stealth | -11 -10 -10 -7 --------- Run | Yrd Mat Sub Rec Distress Signals 2 | . 1 . 1 Communications Jammed . | . . . . Distress Signals . | . . . . Times Spotted 49 | . 28 14 7 Peak Tracking Total 6 | . 4 6 3 Tactical Retreats 4 | . 1 3 . Traps | -11 -10 -10 -7 ------- Run | Yrd Mat Sub Rec Traps Triggered 2 | . 1 1 . Indirectly . | . . . . Trap Hack Attempts . | . . . . Triggered . | . . . . Disarmed . | . . . . Reprogrammed . | . . . . Reused . | . . . . Traps Extracted . | . . . . Installed . | . . . . Triggered . | . . . . Machines | -11 -10 -10 -7 ---------- Run | Yrd Mat Sub Rec Machines Disabled 3 | . 1 2 . Max in Single Turn 1 | . 1 1 . Machines Repaired . | . . . . Machines Dismantled . | . . . . Machines Sabotaged . | . . . . Overloaded Fab Kills . | . . . . Hacking | -11 -10 -10 -7 --------- Run | Yrd Mat Sub Rec Machines Accessed 17 | . 7 2 8 Terminals 12 | . 6 . 6 Fabricators . | . . . . Repair Stations . | . . . . Recycling Units 3 | . 1 . 2 Scanalyzers . | . . . . Garrison Access . | . . . . Total Hacks 59 | . 24 14 21 Successful 37 | . 13 14 10 Failed 22 | . 11 . 11 Catastrophic 6 | . 4 . 2 Database Lockouts . | . . . . Manual 14 | . 6 . 8 Terminals 42 | . 23 . 19 Fabricators . | . . . . Repair Stations . | . . . . Recycling Units 3 | . 1 . 2 Scanalyzers . | . . . . Garrison Access . | . . . . Terminal Hacks 33 | . 11 14 8 Record 14 | . 1 13 . Prototype ID Bank 4 | . 3 . 1 Branch Access Points 2 | . 1 . 1 Emergency Access Points 2 | . 2 . . Recycling Unit Index 1 | . . . 1 Alert Level 1 | . 1 . . Unreport Threat 1 | . 1 . . Locate Traps 1 | . 1 . . Registered Components 1 | . 1 . . Zone Layout 5 | . . . 5 Proto ID Catalog 1 | . . 1 . Fabricator Hacks . | . . . . Repair Station Hacks . | . . . . Recycling Unit Hacks 1 | . 1 . . Report Inventory 1 | . 1 . . Scanalyzer . | . . . . Garrison Access Hacks . | . . . . Unauthorized Hacks 3 | . 1 . 2 Terminals 1 | . 1 . . Botnet 1 | . 1 . . Fabricators . | . . . . Repair Stations . | . . . . Recycling Units 2 | . . . 2 Tunnel 2 | . . . 2 Scanalyzers . | . . . . Garrison Access . | . . . . Data Cores Recovered . | . . . . Used . | . . . . Hacking Detections 12 | . 6 . 6 Full Trace Events 11 | . 5 . 6 Feedback Events 1 | . 1 . . Corruption 1 | . 1 . . Feedback Blocked . | . . . . Robot Schematics Acquired . | . . . . Robots Built . | . . . . Authchips . | . . . . Time . | . . . . Total Robot Build Rating . | . . . . Part Schematics Acquired . | . . . . Parts Built . | . . . . Authchips . | . . . . Time . | . . . . Total Part Build Rating . | . . . . Part Studies Acquired . | . . . . Parts Repaired . | . . . . Time . | . . . . Parts Recycled . | . . . . Recycled Matter . | . . . . Retrieved Matter . | . . . . Retrieved Components . | . . . . Parts Scanalyzed . | . . . . Part Schematics Acquired . | . . . . Parts Damaged . | . . . . Bothacking | -11 -10 -10 -7 ------------ Run | Yrd Mat Sub Rec Used RIF Installer . | . . . . Robots Hacked . | . . . . Non-combat . | . . . . Combat . | . . . . Robot Hacks Applied . | . . . . Relay Couplers Released . | . . . . Fabnet Peak Effective % . | . . . . Robots Rewired 5 | . . . 5 Allies Hacked . | . . . . Hacks Repelled . | . . . . Allies | -11 -10 -10 -7 -------- Run | Yrd Mat Sub Rec Total Allies 5 | . . . 5 Largest Group 5 | . . . 5 Highest-Rated Group 153 | . . . 153 Highest-Rated Ally 40 | . . . 40 Total Orders . | . . . . Ally Attacks 12 | . . . 12 Total Damage 485 | . . . 485 Kills 6 | . . . 6 Allies Corrupted . | . . . . Allies Melted . | . . . . Intel | -11 -10 -10 -7 ------- Run | Yrd Mat Sub Rec Active Infowar (turns) . | . . . . Robot Analysis Total . | . . . . Derelict Logs Recovered 1 | . . 1 . Drone Launches . | . . . . Drone Recoveries . | . . . . Exploration | -11 -10 -10 -7 ------------- Run | Yrd Mat Sub Rec Turns Passed 3170 | 86 1195 1063 826 Spaces Moved 2055 | 54 730 658 613 Core 4 | 4 . . . Treads 3 | 3 . . . Legs 2048 | 47 730 658 613 Wheels . | . . . . Hover . | . . . . Flight . | . . . . Fastest Speed 50 | 50 120 120 90 Average Speed 120 | 117 120 135 106 Slowest Speed 190 | 160 120 190 130 Overloaded Moves . | . . . . Propulsion Burnouts . | . . . . Robots Hopped . | . . . . Potential Cave-ins . | . . . . Cave-ins Triggered . | . . . . Exploration Rate (%) 54 | 3 94 47 75 Regions Visited 3 Branch Regions 2 Pre-discovered Areas 3 | . . 1 2 Known Exits Taken . | . . . . Unknown Exits Taken 3 | 1 1 1 . Scrap Searched 9 | . . 9 . Spaces Dug 1 | . . 1 . Terrain Destroyed 3 | . . 2 1 Melee . | . . . . Projectile 3 | . . 2 1 AOE . | . . . . Terrain Rammed . | . . . . Walls Destroyed . | . . . . Machines Disabled . | . . . . Actions | -11 -10 -10 -7 --------- Run | Yrd Mat Sub Rec Total 2553 | 72 952 763 766 Wait 225 | 1 111 43 70 Move 2052 | 53 729 657 613 Hop . | . . . . Pick Up 24 | 2 14 5 3 Fast Attach 11 | 8 1 1 1 Attach 4 | . . 3 1 Detach 2 | 2 . . . Swap 29 | . 16 10 3 Drop 33 | . 19 8 6 Fire 105 | . 59 35 11 Melee . | . . . . Ram . | . . . . Kick 14 | 6 3 1 4 Crush . | . . . . Escape Stasis . | . . . . Rewire 54 | . . . 54 Trap . | . . . . Miscellaneous . | . . . . Route ------- -11/Scrapyard -10/Materials (discovered 5 exits: [*Mat x3] / *Min / *Sub) -10/Subcaves -7/Recycling (discovered 1 exit: [*Fac]) History --------- Turn | Location | Event 2 | -11/Scrapyard | Met Revision 17 28 | -11/Scrapyard | Discovered new exit (range 16) 87 | -11/Scrapyard | Entered Materials 301 | -10/Materials | Build established: Mutant 340 | -10/Materials | Discovered new exit (range 16) 583 | -10/Materials | Discovered new exit (range 15) 784 | -10/Materials | Discovered new exit (range 15) 944 | -10/Materials | Identified exit to Mines 964 | -10/Materials | Discovered new exit (range 12) 1269 | -10/Materials | Discovered new exit (range 13) 1282 | -10/Materials | Entered Subcaves 1283 | -10/Subcaves | Approached by a straggling Scientist 1297 | -10/Subcaves | Core integrity fell below 50% 1365 | -10/Subcaves | Visited Clippyterm 1368 | -10/Subcaves | Learned location of Deep Caves (-7) 1368 | -10/Subcaves | Learned Factory emergency access door positions 1430 | -10/Subcaves | Curiously followed by a Cobbler waking with a query about "LVR3C" 1480 | -10/Subcaves | Learned Materials security intel 1531 | -10/Subcaves | Core integrity fell below 20% 1760 | -10/Subcaves | Build established: Scavenger-Mutant 1905 | -10/Subcaves | Visited 4L-MR0's lab 1933 | -10/Subcaves | Found Tower Shield 2203 | -10/Subcaves | Discovered new exit (range 15) 2345 | -10/Subcaves | Entered Recycling 2760 | -7/Recycling | Discovered new exit (range 16) 2990 | -7/Recycling | Build established: Mutant 3171 | -7/Recycling | Destroyed by Y-54 Guardian with Flak Gun Last Messages --------------- 03027_ U-05 Engineer builds a Wall. 03028_ U-05 Engineer lays Concrete. 03031_ U-05 Engineer builds a Wall. 03031_ U-05 Engineer lays Concrete. 03055_ Kicked R-06 Scavenger. 03066_ System corrupted: Energy discharge (-43). 03080_ Connecting with Recycling Unit... >>Force(Tunnel) DISCOVERED[-4/Archives] 03087_ System corrupted: Heat flow error (+256). 03090_ Overheating: Energy bleed (-22). 03094_ Connecting with Recycling Unit... >>Force(Tunnel) DISCOVERED[-7/Factory] 03127_ Y-54 Guardian destroyed. 03130_ %GUJZGRHP%AZU#HH,W,%OYTNIVAPVVHR 03147_ System corrupted: IFF burst signal emitted. 03155_ Acquired 10 matter. 03158_ Guardian 4b destroyed. Map ----- +----------------------------------------------------+ | | | | | | | | | | | | | | | | | ?????????????????????????????????????????????????? | | ?????????????????????????????????????????????????? | | ?????????????????????????????????????????????????? | | ?????????????????????????????????????????????????? | | ?????????????????????????????????????????????????? | | ?????????????????????????????????????????????????? | | ?????????????????????????????????????????????????? | | ?????????????????????????????????????????????????? | | ?????????????????????????????????????????????????? | | ?????????????????????????????????????????????????? | | ?????????????????????????????????????????????????? | | ?????????????????????????????????????????????????? | | ?????????????????????????????????????????????????? | | ??????????????????????????#####??????????????????? | | ??????????????????????#####!! #??????????????????? | | ??????????????????????# #! !### ??????? | | ??????????????????????# % Y! = / %/ ! ??????? | | ??????????????????????# @###!% # ! ????? | | ??????????????????????#####?# # ! %????? | | ????????????????????????????# / = ! ????? | | ????????????????????????????# ### ! ] ????? | | ????????????################# ""# ????? | | ????????????# + Y"#? = ?????? | | ????????????# #### ""#? ??????? | | ????????????# #??# ###??####+###??????? | | ????????????# #??# ??????????????????? | | ????????????# """ #??####?????????????????? | | ????????????# """ #???????????????????????? | | ????????????# """ #???????????????????????? | | ????????????# """ #???????????????????????? | | ????????????# " " """ #???????????????????????? | | ????????????# "Y" #???????????????????????? | | ????????????# """ #???????????????????????? | | ????????????# #???????????????????????? | | ???????#### ###/###+########?????????????????????? | | ??????????????????? | | ???????######## ??????????????????? | | ????????#######/## ??????????????????? | | ????????#! ! # #########???????????????????? | | ????????# !! + #???????????????????????????? | | ????????# # ""#?????????????????????????? | | ????????# !#???Y"#?????????????????????????? | +----------------------------------------------------+ Best States ------------- Heat Dissipation 25 Energy Generation 15 Energy Capacity 250 Matter Stores 300 Matter Capacity 300 Sight Range 16 Terrain Scan Density 10 Armor Coverage 150 Propulsion Shielding 33 Evasion (%) 57 Recoil Reduction 2 Item Schematics ----------------- None Robot Schematics ------------------ None Fabricated ------------ Nothing Repaired ---------- Nothing Studied --------- None Alien Tech Used ----------------- None Achievements -------------- Mistaken Identity Challenges ------------ None Game ------ Seed MeleeCorruptionRefractor Manual? 0 Play Time 00:32:34 Cumulative 101.6 hours Start 2026.01.15 @ 20:35:33 End 2026.01.15 @ 21:08:58 Sessions 1 Manual Loads 0 Difficulty Rogue Special Mode None Game No. 49 Rogue 46 Adventurer 3 Explorer 0 Win Type - Total 1 Types 1/0/0/0/0/0/0/0/0/0 Lore% 30 Gallery% 45 Achievement% 35 Wizard Run 0 Options --------- Layout 1 ASCII 0 Keyboard 0 Movement Numpad Keybinds 0 Fullscreen 1 Font 24/Smallcaps Map View 50x35 Zoom Use 0% Tactical HUD 1 Map Filters NONE Filters NONE Steam 1 RUN: 41ef52ea-b49d-4394-83d0-086a0ad2e3d3